Cogmind - Beta 13 @@@ ROGUE MODE // 2024.02.23 @ 21:49:45 Player: Jay Result: Destroyed by S-10 Pest with Light Assault Rifle Performance ------------- Evolutions (0) 0 Regions Visited (1) 200 Robots Destroyed (11) 55 Value Destroyed (356) 356 Prototype IDs (0) 0 Alien Tech Used (0) 0 Bonus (0) 0 TOTAL SCORE: 611 Bonus ------- None Cogmind --------- Core Integrity 0/250 Matter 490/500 Energy 100/100 System Corruption 0% Temperature Cool (0) Movement Walking (400) Ox4 Location -10/Materials Parts ------- > --- POWER (1) -------- (None) > --- PROPULSION (2) --- Aluminum Leg Aluminum Leg > --- UTILITY (2) ------ Huge Storage Unit High-capacity Matter Pod > --- WEAPON (2) ------- (None) > --- INVENTORY (25) --- Ion Engine Aluminum Leg Aluminum Leg Aluminum Leg Heat Sink High-capacity Matter Pod (74) High-capacity Matter Pod (0) Seismic Detector ECM Suite EM Pulse Gun Small Laser Small Laser Small Laser Small Laser Small Laser Light Assault Rifle Light Assault Rifle Peak State ------------ > --- POWER ------------ Ion Engine > --- PROPULSION ------- Light Treads Light Treads > --- UTILITY ---------- Huge Storage Unit Seismic Detector > --- WEAPON ----------- Small Laser Light Assault Rifle > --- INVENTORY -------- Ion Engine Light Ion Engine Aluminum Leg Aluminum Leg Heat Sink EM Pulse Gun Small Laser Small Laser Light Assault Rifle Light Assault Rifle [Rating: 8] Favorites ----------- Power Ion Engine Engine Ion Engine Propulsion Light Treads Treads Light Treads Leg Aluminum Leg Utility Huge Storage Unit Device Seismic Detector Storage Huge Storage Unit Weapon Light Assault Rifle Energy Gun Small Laser Ballistic Gun Light Assault Rifle Build | -11 -10 ------- Run | Yrd Mat Slots Evolved . | . . Power . | . . Propulsion . | . . Utility . | . . Weapon . | . . Parts Attached 12 | 6 6 Power 2 | 1 1 Engine 2 | 1 1 Core . | . . Reactor . | . . Propulsion 4 | 2 2 Treads 2 | 2 . Leg 2 | . 2 Wheel . | . . Hover . | . . Flight . | . . Utility 4 | 1 3 Device 1 | . 1 Storage 3 | 1 2 Processor . | . . Hackware . | . . Protection . | . . Artifact . | . . Weapon 2 | 2 . Energy Gun 1 | 1 . Energy Cannon . | . . Ballistic Gun 1 | 1 . Ballistic Cannon . | . . Launcher . | . . Special Weapon . | . . Impact Weapon . | . . Slashing Weapon . | . . Piercing Weapon . | . . Special Melee Weapon . | . . Unidentified Prototypes . | . . Parts Lost 6 | . 6 Power 2 | . 2 Propulsion 2 | . 2 Utility . | . . Weapon 2 | . 2 Highest Loss Streak 4 | . 4 To Critical Strikes . | . . Average Slot Usage (%) 97 | . 97 Engine 13 | . 13 Treads 26 | . 26 Device 5 | . 5 Storage 22 | . 22 Energy Gun 13 | . 13 Ballistic Gun 13 | . 13 Naked Turns . | . . Heaviest Build 91 | 12 91 Greatest Support 40 | 40 40 Greatest Overweight (x) 4 | . 4 Average Overweight (x) 1 | . 2 Largest Inventory Capacity 25 | 8 25 Average Capacity 23 | 6 24 Most Carried 19 | 5 19 Average Carried 11 | 2 11 Final Capacity 25 | 8 25 Final Carried 17 | 4 17 Class Distribution -------------------- 100% | Mutant Dominant Class ---------------- Mutant | -10/Materials Resources | -11 -10 ----------- Run | Yrd Mat Matter Collected 604 | 260 344 Remotely . | . . Salvage Created 436 | . 436 Parts 23 | . 23 Haulers Intercepted . | . . Recyclers Shooed . | . . Parts Field Recycled . | . . Retrieved Matter . | . . Parts Self-Destructed . | . . Prevented . | . . Kills | -11 -10 ------- Run | Yrd Mat Combat Hostiles Destroyed 10 | . 10 Guns 10 | . 10 Classes Destroyed 2 | . 2 Watcher 1 | . 1 Grunt 10 | . 10 Best Kill Streak 3 | . 3 Combat Bots Only 3 | . 3 Max Kills in Single Turn 1 | . 1 Gunslinging . | . . Exploded . | . . Melee . | . . Uniques/NPCs Destroyed . | . . Combat | -11 -10 -------- Run | Yrd Mat Hostile Shots Fired 144 | . 144 Missed 34 | . 34 Damage Taken 1081 | . 1081 Core 256 | . 256 Absorbed by Shields . | . . Core Remaining (%) 100 | 100 . Volleys Fired 51 | . 51 Largest 2 | . 2 Hottest 60 | . 60 Shots Fired 102 | . 102 Gun 102 | . 102 Cannon . | . . Launcher . | . . Special . | . . Kinetic 51 | . 51 Thermal 51 | . 51 Explosive . | . . Electromagnetic . | . . Robot Hit Streak 12 | . 12 Robot Miss Streak 6 | . 6 Penetration Max . | . . Secondary Targets . | . . Shots Hit Robots 75 | . 75 Core Hits 24 | . 24 Critical Kills 1 | . 1 Critical Parts Destroyed . | . . Critical Strikes 1 | . 1 Destroy 1 | . 1 Melee Attacks . | . . Impact . | . . Slashing . | . . Piercing . | . . Sneak Attacks . | . . Combat Hostiles . | . . Follow-up Attacks . | . . Damage Inflicted 717 | . 717 Guns 717 | . 717 Cannons . | . . Explosions . | . . Melee . | . . Ramming . | . . Kinetic 318 | . 318 Thermal 399 | . 399 Explosive . | . . Electromagnetic . | . . Impact . | . . Slashing . | . . Piercing . | . . Highest Corruption . | . . Average Corruption . | . . Corruption Purged . | . . Corruption Blocked . | . . Overload Shots . | . . Overflow Damage . | . . Projectiles . | . . Explosions . | . . Melee . | . . Knockbacks . | . . Impact . | . . Kinetic . | . . Secondary . | . . Self-Inflicted Damage . | . . Shots . | . . Rammed . | . . Targets Rammed . | . . Kicked . | . . Crushed . | . . Highest Temperature 182 | . 182 Average Temperature 63 | . 63 Received Heat Transfer 384 | . 384 Siege Activations . | . . Robots Corrupted . | . . Combat Hostiles . | . . Parts Fried . | . . Impact Corruptions . | . . Robots Melted . | . . Combat Hostiles . | . . Parts Melted 1 | . 1 Heat Transferred 925 | . 925 Parts Sabotaged . | . . Parts Stolen . | . . Parts Stripped . | . . Power Chain Reactions . | . . Alert | -11 -10 ------- Run | Yrd Mat Peak Influence 139 | . 139 Initial . | . . Average 65 | . 70 Maximum Alert Level . | . . Low Security (%) 100 | 100 100 Level 1 . | . . Level 2 . | . . Level 3 . | . . Level 4 . | . . Level 5 . | . . High Security . | . . Max Security . | . . Squads Dispatched 3 | . 3 Investigation 3 | . 3 Extermination . | . . Reinforcement . | . . Assault . | . . Garrison . | . . Intercept . | . . Searches Triggered . | . . Construction Impeded . | . . Haulers Reinforced . | . . Active Scanning Responses . | . . Cargo Convoy Interrupts . | . . Stealth | -11 -10 --------- Run | Yrd Mat Distress Signals . | . . Communications Jammed . | . . Distress Signals . | . . Times Spotted 27 | . 27 Peak Tracking Total 7 | . 7 Tactical Retreats 1 | . 1 Traps | -11 -10 ------- Run | Yrd Mat Traps Triggered 3 | . 3 Indirectly . | . . Trap Hack Attempts . | . . Triggered . | . . Disarmed . | . . Reprogrammed . | . . Reused . | . . Traps Extracted . | . . Installed . | . . Triggered . | . . Machines | -11 -10 ---------- Run | Yrd Mat Machines Disabled . | . . Max in Single Turn . | . . Machines Repaired . | . . Machines Dismantled . | . . Machines Sabotaged . | . . Overloaded Fab Kills . | . . Hacking | -11 -10 --------- Run | Yrd Mat Machines Accessed 3 | . 3 Terminals 1 | . 1 Fabricators . | . . Repair Stations 1 | . 1 Recycling Units 1 | . 1 Scanalyzers . | . . Garrison Access . | . . Total Hacks 14 | . 14 Successful 7 | . 7 Failed 7 | . 7 Catastrophic . | . . Database Lockouts . | . . Manual . | . . Terminals 3 | . 3 Fabricators . | . . Repair Stations 2 | . 2 Recycling Units 9 | . 9 Scanalyzers . | . . Garrison Access . | . . Terminal Hacks 2 | . 2 Maintenance Status 1 | . 1 Security Status 1 | . 1 Fabricator Hacks . | . . Repair Station Hacks . | . . Recycling Unit Hacks 5 | . 5 Recycle Component 1 | . 1 Process 1 | . 1 Report Inventory 1 | . 1 Retrieve Matter 1 | . 1 Retrieve Components 1 | . 1 Scanalyzer . | . . Garrison Access Hacks . | . . Unauthorized Hacks . | . . Terminals . | . . Fabricators . | . . Repair Stations . | . . Recycling Units . | . . Scanalyzers . | . . Garrison Access . | . . Data Cores Recovered . | . . Used . | . . Hacking Detections 1 | . 1 Full Trace Events . | . . Feedback Events . | . . Feedback Blocked . | . . Robot Schematics Acquired . | . . Robots Built . | . . Authchips . | . . Time . | . . Total Robot Build Rating . | . . Part Schematics Acquired . | . . Parts Built . | . . Authchips . | . . Time . | . . Total Part Build Rating . | . . Parts Repaired . | . . Time . | . . Parts Recycled 1 | . 1 Recycled Matter 76 | . 76 Retrieved Matter 76 | . 76 Retrieved Components . | . . Parts Scanalyzed . | . . Part Schematics Acquired . | . . Parts Damaged . | . . Bothacking | -11 -10 ------------ Run | Yrd Mat Used RIF Installer . | . . Robots Hacked . | . . Non-combat . | . . Combat . | . . Robot Hacks Applied . | . . Relay Couplers Released . | . . Fabnet Peak Effective % . | . . Robots Rewired . | . . Allies Hacked . | . . Hacks Repelled . | . . Allies | -11 -10 -------- Run | Yrd Mat Total Allies . | . . Largest Group . | . . Highest-Rated Group . | . . Highest-Rated Ally . | . . Total Orders . | . . Ally Attacks . | . . Total Damage . | . . Kills . | . . Allies Corrupted . | . . Allies Melted . | . . Intel | -11 -10 ------- Run | Yrd Mat Robot Analysis Total . | . . Derelict Logs Recovered . | . . Drone Launches . | . . Drone Recoveries . | . . Exploration | -11 -10 ------------- Run | Yrd Mat Turns Passed 1008 | 72 936 Spaces Moved 275 | 40 235 Core 6 | 6 . Treads 264 | 34 230 Legs 5 | . 5 Wheels . | . . Hover . | . . Flight . | . . Fastest Speed 50 | 50 160 Average Speed 295 | 143 321 Slowest Speed 480 | 160 480 Overloaded Moves . | . . Propulsion Burnouts . | . . Robots Hopped . | . . Cave-ins Triggered . | . . Exploration Rate (%) 22 | 4 40 Regions Visited 1 Branch Regions . Pre-discovered Areas . | . . Known Exits Taken . | . . Unknown Exits Taken 1 | 1 . Scrap Searched . | . . Spaces Dug . | . . Terrain Destroyed . | . . Melee . | . . Projectile . | . . AOE . | . . Terrain Rammed . | . . Walls Destroyed . | . . Machines Disabled . | . . Actions | -11 -10 --------- Run | Yrd Mat Total 381 | 55 326 Wait 14 | . 14 Move 274 | 39 235 Hop . | . . Pick Up 29 | 10 19 Fast Attach . | . . Attach 11 | 6 5 Detach . | . . Swap 1 | . 1 Drop 1 | . 1 Fire 51 | . 51 Melee . | . . Ram . | . . Kick . | . . Crush . | . . Escape Stasis . | . . Rewire . | . . Trap . | . . Miscellaneous . | . . Route ------- -11/Scrapyard -10/Materials (discovered 1 exit: [*Mat]) History --------- Turn | Location | Event 16 | -11/Scrapyard | Discovered new exit (range 16) 73 | -11/Scrapyard | Entered Materials 315 | -10/Materials | Build established: Mutant 727 | -10/Materials | Discovered new exit (range 16) 897 | -10/Materials | Core integrity fell below 50% 995 | -10/Materials | Core integrity fell below 20% 1009 | -10/Materials | Destroyed by S-10 Pest with Light Assault Rifle Last Messages --------------- 00922_ K-01 Serf collects debris. 00926_ Acquired Aluminum Leg. 00926_ K-01 Serf collects debris. 00927_ Acquired 41 matter. 00930_ K-01 Serf collects debris. 00932_ Acquired 41 matter. 00933_ K-01 Serf collects debris. 00941_ Acquired Sml. Laser. 00943_ K-01 Serf collects debris. 00974_ K-01 Serf cleans the Purification Channel. 00983_ Sml. Laser destroyed. 00990_ Lgt. Treads destroyed. 00992_ Lgt. Assault Rifle destroyed. 00996_ S-10 Pest destroyed. 00997_ R-06 Scavenger collects Flight Unit. 00998_ Lgt. Ion Engine destroyed. 00999_ K-01 Serf collects debris. 01000_ R-06 Scavenger collects Flight Unit. 01002_ K-01 Serf collects debris. 01004_ K-01 Serf cleans the Purification Channel. Map ----- +----------------------------------------------------+ | | | | | | | | | | | | | | | | | | | | | | | | | | | | | ????????????????????????#############??????????? | | ????????????????????????# #??????????? | | ????????????????????????# """ "" #??????????? | | ????????????????????????# """ "" #??????????? | | ????????????????????????# """ T" #??????????? | | ????????????????????????# "" #??????????? | | ????????????????????????# "" #??????????? | | ????????????????????????# #??????????? | | ????????????####+#############+#############???? | | ????????????# ?? | | ????????????# < w ?? | | ????????????# @ss """ """ ?? | | ?????????????###+#########s """""""???????? | | ?????########?????????#### """"" " ?????? | | ????## #?????????#""" ??? | | ????#" #?????????#"R= * ??? | | ????#T #?????????#""" """ """ ??? | | ????#" ! #?????????# "" """"""""" ????? | | ????##!! #?????????#### """"" " ??? | | ?????# #????????????# ?? | | ?#########+############### ??? | | # ! + [ """ """ ?????? | | # """ # =%*"""""""???????? | | # """ # """"" " ?????? | | #/ """!# ??? | | # +% ?? | | # """=# ##??? | | # """ ## ########## ## ^ #???? | | # """ ## #??????? ####+####### #???? | | # ## #?????? #??????????? #???? | | ########### #?????# #???????????? #???? | | ?########?# #?????# #???????????? #???? | | ?# ### ###???# ##????????????? #####????? | | ?# "T" # #???####??????????????? #????????? | | ?# # #???????????????????????"????????? | | ?# + #????????????????????????????????? | +----------------------------------------------------+ Best States ------------- Heat Dissipation 25 Energy Generation 10 Energy Capacity 250 Matter Stores 500 Matter Capacity 500 Sight Range 16 Terrain Scan Density 10 Evasion (%) 40 Recoil Reduction 2 Item Schematics ----------------- None Robot Schematics ------------------ None Fabricated ------------ Nothing Alien Tech Used ----------------- None Achievements -------------- None Challenges ------------ None Game ------ Seed ChromaticTerrabombAirjet Manual? 0 Play Time 00:08:06 Cumulative 34.4 hours Start 2024.02.23 @ 21:41:52 End 2024.02.23 @ 21:49:45 Sessions 1 Manual Loads 0 Difficulty Rogue Special Mode None Game No. 59 Rogue 47 Adventurer 12 Explorer 0 Win Type - Total 0 Types 0/0/0/0/0/0/0/0/0 Lore% 13 Gallery% 23 Achievement% 18 Wizard Run 0 Options --------- Layout 0 ASCII 0 Keyboard 0 Movement Mouse Keybinds 0 Fullscreen 2 Font 18/SmallcapsGlow Map View 38x25 Zoom Use 100% Tactical HUD 1 Map Filters NONE Filters NONE Steam 1 RUN: 4d74676c-6be6-46c4-a02e-bc59f3305069